[Event "*** Titled Tuesday Blitz"]
[Site "Chess.com"]
[Date "2020.12.01"]
[Round "3"]
[White "Skatchkov_V"]
[Black "Blackmind96"]
[Result "0-1"]
[WhiteElo "2502"]
[BlackElo "2774"]
[TimeControl "180+1"]
[EndTime "10:29:46 PST"]
[Termination "Blackmind96 won on time"]

1. d4 {[%clk 0:03:00.9]} 1... Nf6 {[%clk 0:02:59.4]} 2. c4 {[%clk 0:03:01.1]}
2... d6 {[%clk 0:02:54.2]} 3. Nf3 {[%clk 0:03:00.6]} 3... Nbd7 {[%clk 0:02:54]}
4. Nc3 {[%clk 0:02:58.5]} 4... e5 {[%clk 0:02:54.4]} 5. e4 {[%clk 0:02:55.4]}
5... g6 {[%clk 0:02:54.8]} 6. g3 {[%clk 0:02:51.4]} 6... Bg7 {[%clk 0:02:55.1]}
7. Bg2 {[%clk 0:02:51.5]} 7... exd4 {[%clk 0:02:56]} 8. Nxd4 {[%clk 0:02:52.1]}
8... O-O {[%clk 0:02:56]} 9. O-O {[%clk 0:02:52.3]} 9... Re8 {[%clk 0:02:56.6]}
10. Re1 {[%clk 0:02:51.8]} 10... c6 {[%clk 0:02:56]} 11. h3 {[%clk 0:02:42.4]}
11... a5 {[%clk 0:02:53.3]} 12. Be3 {[%clk 0:02:40.1]} 12... Nc5 {[%clk
0:02:50.4]} 13. Qc2 {[%clk 0:02:39.4]} 13... a4 {[%clk 0:02:45.8]} 14. Rab1
{[%clk 0:02:32.3]} 14... Nfd7 {[%clk 0:02:44.3]} 15. b4 {[%clk 0:02:28.7]} 15...
axb3 {[%clk 0:02:45.2]} 16. axb3 {[%clk 0:02:29.6]} 16... Ne5 {[%clk 0:02:34.6]}
17. Red1 {[%clk 0:01:58.6]} 17... h5 {[%clk 0:02:27.5]} 18. f4 {[%clk
0:01:53.1]} 18... Ned7 {[%clk 0:02:23.8]} 19. Nf3 {[%clk 0:01:53.2]} 19... Bxc3
{[%clk 0:02:05.7]} 20. Qxc3 {[%clk 0:01:51.9]} 20... Nxe4 {[%clk 0:02:05.7]} 21.
Qe1 {[%clk 0:01:44]} 21... Nxg3 {[%clk 0:02:04.1]} 22. Qxg3 {[%clk 0:01:44.2]}
22... Rxe3 {[%clk 0:02:02.7]} 23. Rxd6 {[%clk 0:01:45.1]} 23... Qe7 {[%clk
0:01:54.4]} 24. f5 {[%clk 0:01:44.1]} 24... Nf8 {[%clk 0:01:46.9]} 25. fxg6
{[%clk 0:01:35.9]} 25... fxg6 {[%clk 0:01:41.3]} 26. Rbd1 {[%clk 0:01:20.3]}
26... Bf5 {[%clk 0:01:39.3]} 27. Qf4 {[%clk 0:01:18.8]} 27... Re8 {[%clk
0:01:35.9]} 28. Nh4 {[%clk 0:00:51.9]} 28... Re1+ {[%clk 0:01:28.6]} 29. Kh2
{[%clk 0:00:46.7]} 29... Rxd1 {[%clk 0:01:27.1]} 30. Nxf5 {[%clk 0:00:46.5]}
30... gxf5 {[%clk 0:01:20.2]} 31. Rxd1 {[%clk 0:00:38.2]} 31... Qe5 {[%clk
0:01:18.7]} 32. Qxe5 {[%clk 0:00:30.9]} 32... Rxe5 {[%clk 0:01:19.6]} 33. b4
{[%clk 0:00:31]} 33... Kf7 {[%clk 0:01:15.4]} 34. b5 {[%clk 0:00:27.5]} 34...
cxb5 {[%clk 0:01:15.8]} 35. Bxb7 {[%clk 0:00:28.4]} 35... bxc4 {[%clk
0:01:10.9]} 36. Bd5+ {[%clk 0:00:28.1]} 36... Kf6 {[%clk 0:01:09.2]} 37. Bxc4
{[%clk 0:00:28.1]} 37... Ng6 {[%clk 0:01:09.7]} 38. Rd2 {[%clk 0:00:23.9]} 38...
Re3 {[%clk 0:01:08.3]} 39. Rd6+ {[%clk 0:00:17]} 39... Kg5 {[%clk 0:01:07.2]}
40. Rd8 {[%clk 0:00:13.1]} 40... Rc3 {[%clk 0:01:02.9]} 41. Bf1 {[%clk
0:00:10.6]} 41... Rc2+ {[%clk 0:01:01.4]} 42. Kg3 {[%clk 0:00:09.8]} 42... h4+
{[%clk 0:00:54.1]} 43. Kf3 {[%clk 0:00:09.8]} 43... Rc3+ {[%clk 0:00:54.6]} 44.
Kf2 {[%clk 0:00:09.2]} 44... Nf4 {[%clk 0:00:46.7]} 45. Rg8+ {[%clk 0:00:06.5]}
45... Kf6 {[%clk 0:00:46.8]} 46. Rh8 {[%clk 0:00:06.7]} 46... Nxh3+ {[%clk
0:00:42.3]} 47. Bxh3 {[%clk 0:00:06.2]} 47... Rxh3 {[%clk 0:00:43.2]} 48. Kg2
{[%clk 0:00:06.6]} 48... Rg3+ {[%clk 0:00:43.6]} 49. Kf2 {[%clk 0:00:06.6]}
49... Kg5 {[%clk 0:00:42.7]} 50. Rg8+ {[%clk 0:00:05.7]} 50... Kf4 {[%clk
0:00:42.7]} 51. Rh8 {[%clk 0:00:06.6]} 51... Rg4 {[%clk 0:00:43.3]} 52. Rh7
{[%clk 0:00:05.7]} 52... Kg5 {[%clk 0:00:41.2]} 53. Rg7+ {[%clk 0:00:05.5]}
53... Kh6 {[%clk 0:00:40]} 54. Rf7 {[%clk 0:00:05.6]} 54... Kg6 {[%clk
0:00:40.2]} 55. Rf8 {[%clk 0:00:05.4]} 55... Ra4 {[%clk 0:00:32.5]} 56. Rh8
{[%clk 0:00:05.1]} 56... Kg5 {[%clk 0:00:32.4]} 57. Rg8+ {[%clk 0:00:04.6]}
57... Kf4 {[%clk 0:00:30.7]} 58. Rh8 {[%clk 0:00:04.7]} 58... Ra2+ {[%clk
0:00:29.8]} 59. Kg1 {[%clk 0:00:04.4]} 59... Kg3 {[%clk 0:00:28.2]} 60. Rg8+
{[%clk 0:00:04.5]} 60... Kf3 {[%clk 0:00:28.7]} 61. Rf8 {[%clk 0:00:05.4]} 61...
f4 {[%clk 0:00:27.6]} 62. Rh8 {[%clk 0:00:05.5]} 62... Ra1+ {[%clk 0:00:26.7]}
63. Kh2 {[%clk 0:00:04.9]} 63... Kf2 {[%clk 0:00:27.1]} 64. Rxh4 {[%clk
0:00:04.2]} 64... f3 {[%clk 0:00:27.6]} 65. Rh8 {[%clk 0:00:03.5]} 65... Ra4
{[%clk 0:00:27]} 66. Rh7 {[%clk 0:00:02.8]} 66... Kf1 {[%clk 0:00:22.7]} 67. Rh8
{[%clk 0:00:02.4]} 67... f2 {[%clk 0:00:22.5]} 68. Rf8 {[%clk 0:00:02.5]} 68...
Re4 {[%clk 0:00:20.5]} 69. Rf7 {[%clk 0:00:01.8]} 69... Ke1 {[%clk 0:00:15.6]}
0-1

[Event "*** Titled Tuesday Blitz"]
[Site "Chess.com"]
[Date "2020.12.01"]
[Round "3"]
[White "TigrVShlyape"]
[Black "asms9699"]
[Result "1-0"]
[WhiteElo "2849"]
[BlackElo "2594"]
[TimeControl "180+1"]
[EndTime "10:29:48 PST"]
[Termination "TigrVShlyape won by resignation"]

1. d4 {[%clk 0:03:00.9]} 1... d5 {[%clk 0:02:57.4]} 2. Nf3 {[%clk 0:03:00.8]}
2... Nf6 {[%clk 0:02:57]} 3. Bf4 {[%clk 0:03:00]} 3... e6 {[%clk 0:02:55.5]} 4.
e3 {[%clk 0:02:59.4]} 4... c5 {[%clk 0:02:55.6]} 5. c3 {[%clk 0:02:58.4]} 5...
Nc6 {[%clk 0:02:55.6]} 6. Nbd2 {[%clk 0:02:58.7]} 6... Be7 {[%clk 0:02:54.9]} 7.
h4 {[%clk 0:02:56.1]} 7... Bd6 {[%clk 0:02:39.4]} 8. Ne5 {[%clk 0:02:35.4]} 8...
Qc7 {[%clk 0:02:32.2]} 9. Ndf3 {[%clk 0:02:30.9]} 9... Nd7 {[%clk 0:02:26.3]}
10. Bb5 {[%clk 0:01:49.1]} 10... O-O {[%clk 0:02:06]} 11. Bxc6 {[%clk
0:01:44.6]} 11... bxc6 {[%clk 0:02:03.7]} 12. Qa4 {[%clk 0:01:37.8]} 12... Bb7
{[%clk 0:01:35.6]} 13. Nxd7 {[%clk 0:01:36.1]} 13... Qxd7 {[%clk 0:01:36.5]} 14.
Bxd6 {[%clk 0:01:35.9]} 14... Qxd6 {[%clk 0:01:37.4]} 15. Qa3 {[%clk 0:01:36.1]}
15... Rfe8 {[%clk 0:01:15.3]} 16. O-O {[%clk 0:01:33.1]} 16... Rab8 {[%clk
0:00:52.4]} 17. b3 {[%clk 0:01:23.7]} 17... Qe7 {[%clk 0:00:24.5]} 18. Qxc5
{[%clk 0:01:03.3]} 18... Qxc5 {[%clk 0:00:22.1]} 19. dxc5 {[%clk 0:01:04.2]}
19... e5 {[%clk 0:00:22.6]} 20. Rfe1 {[%clk 0:00:53.2]} 20... Ba6 {[%clk
0:00:20.3]} 21. Nd2 {[%clk 0:00:50.7]} 21... Rb5 {[%clk 0:00:18.5]} 22. b4
{[%clk 0:00:50.1]} 22... Rbb8 {[%clk 0:00:17.7]} 23. e4 {[%clk 0:00:45.5]} 23...
d4 {[%clk 0:00:15.1]} 24. cxd4 {[%clk 0:00:45]} 24... exd4 {[%clk 0:00:16]} 25.
a3 {[%clk 0:00:43.5]} 25... Bd3 {[%clk 0:00:13.9]} 26. Nb3 {[%clk 0:00:30.4]}
26... Rbd8 {[%clk 0:00:13.6]} 27. f3 {[%clk 0:00:28.7]} 27... Bc2 {[%clk
0:00:12.7]} 28. Nd2 {[%clk 0:00:28.4]} 28... d3 {[%clk 0:00:10.9]} 29. Kf2
{[%clk 0:00:27.8]} 29... a5 {[%clk 0:00:11.1]} 30. bxa5 {[%clk 0:00:24.9]} 30...
Ra8 {[%clk 0:00:10.9]} 31. Nc4 {[%clk 0:00:21]} 31... Bb3 {[%clk 0:00:11.1]} 32.
Nd2 {[%clk 0:00:19.9]} 32... Bc2 {[%clk 0:00:10.9]} 33. Nc4 {[%clk 0:00:19.1]}
33... Bb3 {[%clk 0:00:11.2]} 34. Nd6 {[%clk 0:00:16.5]} 34... Reb8 {[%clk
0:00:10.5]} 35. Ke3 {[%clk 0:00:16]} 35... Bc2 {[%clk 0:00:10.2]} 36. Nc4 {[%clk
0:00:15.8]} 36... Rb5 {[%clk 0:00:08.9]} 37. Kd2 {[%clk 0:00:10.8]} 37... Rxc5
{[%clk 0:00:08.7]} 38. Ne3 {[%clk 0:00:11]} 38... Rcxa5 {[%clk 0:00:08.6]} 39.
Nxc2 {[%clk 0:00:09.3]} 39... dxc2 {[%clk 0:00:09.5]} 40. Re3 {[%clk 0:00:09]}
40... Rc5 {[%clk 0:00:08.1]} 41. Rc1 {[%clk 0:00:08.3]} 41... Rca5 {[%clk
0:00:07.6]} 42. Rxc2 {[%clk 0:00:07.5]} 42... Rxa3 {[%clk 0:00:07.7]} 43. Rxa3
{[%clk 0:00:07.9]} 43... Rxa3 {[%clk 0:00:08.5]} 44. Rxc6 {[%clk 0:00:08.1]}
44... h5 {[%clk 0:00:07.7]} 45. Rc2 {[%clk 0:00:07.4]} 45... g6 {[%clk
0:00:07.4]} 46. Ke2 {[%clk 0:00:07.9]} 46... Kg7 {[%clk 0:00:07.9]} 47. Kf2
{[%clk 0:00:08.4]} 47... Rb3 {[%clk 0:00:08.4]} 48. Kg3 {[%clk 0:00:08.8]} 48...
Ra3 {[%clk 0:00:08.9]} 49. Kf4 {[%clk 0:00:09.3]} 49... Ra4 {[%clk 0:00:09.3]}
50. Rc7 {[%clk 0:00:09.2]} 50... Rb4 {[%clk 0:00:09.8]} 51. g3 {[%clk
0:00:08.2]} 51... Ra4 {[%clk 0:00:10.2]} 52. g4 {[%clk 0:00:07.2]} 52... hxg4
{[%clk 0:00:10]} 53. fxg4 {[%clk 0:00:07.2]} 53... Rb4 {[%clk 0:00:10.3]} 54. h5
{[%clk 0:00:07]} 54... gxh5 {[%clk 0:00:10]} 55. gxh5 {[%clk 0:00:07.2]} 55...
Rb5 {[%clk 0:00:10.5]} 56. e5 {[%clk 0:00:07]} 56... Rb4+ {[%clk 0:00:10.2]} 57.
Kf5 {[%clk 0:00:06.8]} 57... Rb1 {[%clk 0:00:10]} 58. e6 {[%clk 0:00:06.4]}
58... Rf1+ {[%clk 0:00:10]} 59. Kg4 {[%clk 0:00:06.5]} 59... Rg1+ {[%clk
0:00:10.3]} 60. Kh4 {[%clk 0:00:04.7]} 60... Rf1 {[%clk 0:00:08.6]} 61. e7
{[%clk 0:00:04.3]} 61... Re1 {[%clk 0:00:08.5]} 62. Kg5 {[%clk 0:00:04.4]} 62...
Re5+ {[%clk 0:00:08.3]} 63. Kf4 {[%clk 0:00:04.3]} 63... Re1 {[%clk 0:00:08]}
64. Kf5 {[%clk 0:00:02.7]} 64... Rf1+ {[%clk 0:00:07.9]} 65. Kg5 {[%clk
0:00:02.2]} 65... Rg1+ {[%clk 0:00:08.2]} 66. Kf4 {[%clk 0:00:02.4]} 66... Rf1+
{[%clk 0:00:08.7]} 67. Ke5 {[%clk 0:00:02.4]} 67... Re1+ {[%clk 0:00:09]} 68.
Kd6 {[%clk 0:00:02.7]} 68... Rd1+ {[%clk 0:00:09.3]} 69. Kc6 {[%clk 0:00:02.5]}
69... Re1 {[%clk 0:00:09.5]} 70. Kd7 {[%clk 0:00:02.8]} 70... Rd1+ {[%clk
0:00:08.6]} 71. Kc8 {[%clk 0:00:03.1]} 71... Re1 {[%clk 0:00:08.4]} 72. Kd8
{[%clk 0:00:03.4]} 72... Kh6 {[%clk 0:00:08.6]} 73. e8=Q {[%clk 0:00:03]} 73...
Rxe8+ {[%clk 0:00:09.1]} 74. Kxe8 {[%clk 0:00:03.7]} 74... f5 {[%clk 0:00:09.5]}
75. Rf7 {[%clk 0:00:03.2]} 75... Kg5 {[%clk 0:00:09.3]} 76. h6 {[%clk
0:00:02.8]} 1-0

[Event "*** Titled Tuesday Blitz"]
[Site "Chess.com"]
[Date "2020.12.01"]
[Round "3"]
[White "bascheyaro"]
[Black "banane_verte"]
[Result "1/2-1/2"]
[WhiteElo "2740"]
[BlackElo "2492"]
[TimeControl "180+1"]
[EndTime "10:29:53 PST"]
[Termination "Game drawn - insufficient material"]

1. d4 {[%clk 0:02:43.2]} 1... Nf6 {[%clk 0:02:59.9]} 2. Nc3 {[%clk 0:02:42.1]}
2... d5 {[%clk 0:02:59.6]} 3. Bf4 {[%clk 0:02:42.2]} 3... Bf5 {[%clk 0:02:58.1]}
4. Nb5 {[%clk 0:02:39.7]} 4... Na6 {[%clk 0:02:55.8]} 5. e3 {[%clk 0:02:39.4]}
5... e6 {[%clk 0:02:52.4]} 6. c4 {[%clk 0:02:36.5]} 6... Bb4+ {[%clk 0:02:48.7]}
7. Nc3 {[%clk 0:02:36.5]} 7... O-O {[%clk 0:02:25]} 8. Nf3 {[%clk 0:02:33.3]}
8... Nb8 {[%clk 0:02:21.3]} 9. Bd3 {[%clk 0:02:25.5]} 9... Bxd3 {[%clk
0:02:20.9]} 10. Qxd3 {[%clk 0:02:26.4]} 10... Nbd7 {[%clk 0:02:18.3]} 11. O-O
{[%clk 0:02:24]} 11... Bd6 {[%clk 0:02:11.6]} 12. Bxd6 {[%clk 0:02:16.9]} 12...
dxc4 {[%clk 0:02:05.4]} 13. Qxc4 {[%clk 0:02:07.5]} 13... cxd6 {[%clk
0:02:04.6]} 14. Rac1 {[%clk 0:02:05.4]} 14... Qb6 {[%clk 0:01:55.5]} 15. Na4
{[%clk 0:01:55.6]} 15... Qa5 {[%clk 0:01:52.5]} 16. Qb3 {[%clk 0:01:54.7]} 16...
h6 {[%clk 0:01:26.8]} 17. Rc2 {[%clk 0:01:46.3]} 17... Rac8 {[%clk 0:01:12.3]}
18. Rfc1 {[%clk 0:01:45.7]} 18... Rxc2 {[%clk 0:01:07.3]} 19. Rxc2 {[%clk
0:01:46.6]} 19... b6 {[%clk 0:01:02.2]} 20. h3 {[%clk 0:01:43.2]} 20... Qa6
{[%clk 0:00:58.6]} 21. Nc3 {[%clk 0:01:15.9]} 21... Rc8 {[%clk 0:00:57.5]} 22.
Nb1 {[%clk 0:01:06.3]} 22... Nd5 {[%clk 0:00:47.2]} 23. a3 {[%clk 0:01:04.3]}
23... N7f6 {[%clk 0:00:45.2]} 24. Nbd2 {[%clk 0:00:58.6]} 24... Rxc2 {[%clk
0:00:40.2]} 25. Qxc2 {[%clk 0:00:59.5]} 25... Qe2 {[%clk 0:00:39.5]} 26. Qc8+
{[%clk 0:00:59.5]} 26... Kh7 {[%clk 0:00:38.9]} 27. Qb7 {[%clk 0:00:56]} 27...
Kg8 {[%clk 0:00:20.6]} 28. Qxa7 {[%clk 0:00:54.4]} 28... Qd1+ {[%clk 0:00:20.2]}
29. Nf1 {[%clk 0:00:54.5]} 29... Ne4 {[%clk 0:00:19.1]} 30. Qb8+ {[%clk
0:00:17.5]} 30... Kh7 {[%clk 0:00:19.3]} 31. Nh2 {[%clk 0:00:13]} 31... Nd2
{[%clk 0:00:17.4]} 32. Qxd6 {[%clk 0:00:11]} 32... Nf6 {[%clk 0:00:14.1]} 33.
Qf4 {[%clk 0:00:09.6]} 33... Qc1 {[%clk 0:00:10.8]} 34. b4 {[%clk 0:00:06.7]}
34... Nxf1 {[%clk 0:00:10.4]} 35. Nxf1 {[%clk 0:00:06.8]} 35... Qxa3 {[%clk
0:00:11.3]} 36. Qd6 {[%clk 0:00:06.2]} 36... b5 {[%clk 0:00:11.5]} 37. Qc5
{[%clk 0:00:06.3]} 37... Ne4 {[%clk 0:00:08.6]} 38. Qxb5 {[%clk 0:00:05.9]}
38... Qb2 {[%clk 0:00:08.8]} 39. Qd3 {[%clk 0:00:05.9]} 39... Qxf2+ {[%clk
0:00:08.5]} 40. Kh2 {[%clk 0:00:05.7]} 40... f5 {[%clk 0:00:05.6]} 41. d5 {[%clk
0:00:06.1]} 41... e5 {[%clk 0:00:05.3]} 42. d6 {[%clk 0:00:05.1]} 42... Qh4
{[%clk 0:00:02.7]} 43. d7 {[%clk 0:00:04.7]} 43... Qd8 {[%clk 0:00:03.6]} 44. b5
{[%clk 0:00:04.4]} 44... g6 {[%clk 0:00:03.4]} 45. Qd5 {[%clk 0:00:04.2]} 45...
Nf6 {[%clk 0:00:03]} 46. Qd6 {[%clk 0:00:04]} 46... Nxd7 {[%clk 0:00:03]} 47. b6
{[%clk 0:00:04.4]} 47... Qc8 {[%clk 0:00:02.4]} 48. Qc7 {[%clk 0:00:04.8]} 48...
Qxc7 {[%clk 0:00:02.8]} 49. bxc7 {[%clk 0:00:05.7]} 49... Nb6 {[%clk 0:00:03.7]}
50. Nd2 {[%clk 0:00:05.8]} 50... Kg7 {[%clk 0:00:03.9]} 51. Nc4 {[%clk
0:00:06.4]} 51... Nc8 {[%clk 0:00:03]} 52. Nxe5 {[%clk 0:00:06.8]} 52... Kf6
{[%clk 0:00:03.9]} 53. Nd3 {[%clk 0:00:06.7]} 53... Ke6 {[%clk 0:00:03.9]} 54.
Nf4+ {[%clk 0:00:06.9]} 54... Kf6 {[%clk 0:00:04]} 55. Kg3 {[%clk 0:00:06.9]}
55... g5 {[%clk 0:00:04.4]} 56. Nd3 {[%clk 0:00:06.3]} 56... Ke6 {[%clk
0:00:04.5]} 57. Kf3 {[%clk 0:00:05.7]} 57... Kd6 {[%clk 0:00:04.6]} 58. g4
{[%clk 0:00:05.2]} 58... Ke6 {[%clk 0:00:03.5]} 59. Nb4 {[%clk 0:00:03.8]} 59...
Kf6 {[%clk 0:00:02.6]} 60. Nd5+ {[%clk 0:00:03.2]} 60... Kg6 {[%clk 0:00:02.6]}
61. Nb4 {[%clk 0:00:01.4]} 61... fxg4+ {[%clk 0:00:02.6]} 62. Kxg4 {[%clk
0:00:02.3]} 62... h5+ {[%clk 0:00:03.2]} 63. Kf3 {[%clk 0:00:03]} 63... Kf5
{[%clk 0:00:04.1]} 64. e4+ {[%clk 0:00:03.4]} 64... Ke5 {[%clk 0:00:03.9]} 65.
Nd5 {[%clk 0:00:04.3]} 65... g4+ {[%clk 0:00:03.5]} 66. hxg4 {[%clk 0:00:04.8]}
66... hxg4+ {[%clk 0:00:04.4]} 67. Ke3 {[%clk 0:00:05.7]} 67... g3 {[%clk
0:00:04.6]} 68. Nf4 {[%clk 0:00:05.9]} 68... Kd6 {[%clk 0:00:02.8]} 69. Nd5
{[%clk 0:00:05.9]} 69... Ke5 {[%clk 0:00:03]} 70. Kf3 {[%clk 0:00:06]} 70... g2
{[%clk 0:00:03.3]} 71. Kxg2 {[%clk 0:00:06.3]} 71... Kxe4 {[%clk 0:00:04.2]} 72.
Ne7 {[%clk 0:00:06.3]} 72... Nxe7 {[%clk 0:00:04.2]} 73. Kf2 {[%clk 0:00:05.9]}
73... Nc8 {[%clk 0:00:05.1]} 74. Ke2 {[%clk 0:00:05.8]} 74... Ke5 {[%clk
0:00:06]} 75. Kd2 {[%clk 0:00:06.7]} 75... Kd6 {[%clk 0:00:06.9]} 76. Kd3 {[%clk
0:00:07.6]} 76... Kxc7 {[%clk 0:00:07.8]} 1/2-1/2

[Event "*** Titled Tuesday Blitz"]
[Site "Chess.com"]
[Date "2020.12.01"]
[Round "3"]
[White "Bulldog167"]
[Black "DinaBelenkaya"]
[Result "0-1"]
[WhiteElo "2609"]
[BlackElo "2402"]
[TimeControl "180+1"]
[EndTime "10:30:01 PST"]
[Termination "DinaBelenkaya won on time"]

1. e4 {[%clk 0:03:00.9]} 1... d5 {[%clk 0:02:45.8]} 2. exd5 {[%clk 0:02:57.7]}
2... Qxd5 {[%clk 0:02:46.7]} 3. Nc3 {[%clk 0:02:57.9]} 3... Qa5 {[%clk
0:02:46.4]} 4. d4 {[%clk 0:02:57.7]} 4... c6 {[%clk 0:02:45.1]} 5. Bc4 {[%clk
0:02:57.5]} 5... Nf6 {[%clk 0:02:45.2]} 6. Nf3 {[%clk 0:02:52.3]} 6... Bf5
{[%clk 0:02:44.3]} 7. Bd2 {[%clk 0:02:51.3]} 7... e6 {[%clk 0:02:43]} 8. Nd5
{[%clk 0:02:48]} 8... Qd8 {[%clk 0:02:42]} 9. Nxf6+ {[%clk 0:02:48.1]} 9... Qxf6
{[%clk 0:02:42.9]} 10. c3 {[%clk 0:02:27]} 10... Nd7 {[%clk 0:02:41.5]} 11. O-O
{[%clk 0:02:18.2]} 11... Bd6 {[%clk 0:02:39.2]} 12. Bg5 {[%clk 0:02:03.6]} 12...
Qg6 {[%clk 0:02:38.3]} 13. Bh4 {[%clk 0:02:02.8]} 13... Bg4 {[%clk 0:02:36.6]}
14. Bg3 {[%clk 0:01:54.9]} 14... Bxg3 {[%clk 0:02:35]} 15. fxg3 {[%clk
0:01:52.4]} 15... O-O {[%clk 0:02:35]} 16. Qd2 {[%clk 0:01:46.6]} 16... Qh5
{[%clk 0:02:27.6]} 17. h3 {[%clk 0:01:40.9]} 17... Bxf3 {[%clk 0:02:24.1]} 18.
Rxf3 {[%clk 0:01:41.8]} 18... Rad8 {[%clk 0:02:23.3]} 19. Qf2 {[%clk 0:01:31]}
19... a5 {[%clk 0:02:11]} 20. Rf1 {[%clk 0:01:30.1]} 20... b5 {[%clk 0:01:57.7]}
21. Bd3 {[%clk 0:01:27]} 21... a4 {[%clk 0:01:56.5]} 22. Rf4 {[%clk 0:01:26.3]}
22... h6 {[%clk 0:01:55]} 23. g4 {[%clk 0:01:15.7]} 23... Qg5 {[%clk 0:01:49.5]}
24. Rxf7 {[%clk 0:01:11]} 24... Nf6 {[%clk 0:01:48.1]} 25. Rxf8+ {[%clk
0:01:10.2]} 25... Rxf8 {[%clk 0:01:49]} 26. Qe2 {[%clk 0:01:07.1]} 26... Qd5
{[%clk 0:01:41.5]} 27. Re1 {[%clk 0:00:54.2]} 27... Re8 {[%clk 0:01:34.6]} 28.
a3 {[%clk 0:00:51.7]} 28... Kh8 {[%clk 0:01:29.1]} 29. Bg6 {[%clk 0:00:50.6]}
29... Re7 {[%clk 0:01:27.3]} 30. Qf2 {[%clk 0:00:47.1]} 30... Qg5 {[%clk
0:01:25.4]} 31. Be4 {[%clk 0:00:44.8]} 31... Nd5 {[%clk 0:01:21.8]} 32. Bxd5
{[%clk 0:00:41.7]} 32... cxd5 {[%clk 0:01:19.3]} 33. Re5 {[%clk 0:00:34.2]}
33... Qf6 {[%clk 0:01:18.1]} 34. Qe2 {[%clk 0:00:27.5]} 34... Qf4 {[%clk
0:01:11.9]} 35. Qe3 {[%clk 0:00:25.5]} 35... Qxe3+ {[%clk 0:00:59.3]} 36. Rxe3
{[%clk 0:00:26.4]} 36... Kg8 {[%clk 0:00:59.9]} 37. Kf2 {[%clk 0:00:26.4]} 37...
g5 {[%clk 0:00:57.7]} 38. Kg3 {[%clk 0:00:19.3]} 38... Kf7 {[%clk 0:00:57.2]}
39. h4 {[%clk 0:00:19.5]} 39... Re8 {[%clk 0:00:54.5]} 40. Re1 {[%clk
0:00:18.9]} 40... Ke7 {[%clk 0:00:53]} 41. hxg5 {[%clk 0:00:18.3]} 41... hxg5
{[%clk 0:00:52.9]} 42. Rh1 {[%clk 0:00:19.2]} 42... Kd6 {[%clk 0:00:34.9]} 43.
Rh5 {[%clk 0:00:18.7]} 43... Rg8 {[%clk 0:00:34.8]} 44. Kf3 {[%clk 0:00:14.1]}
44... Rg6 {[%clk 0:00:34.6]} 45. Ke3 {[%clk 0:00:14.2]} 45... e5 {[%clk
0:00:34.9]} 46. dxe5+ {[%clk 0:00:10.6]} 46... Kxe5 {[%clk 0:00:35.8]} 47. Rh8
{[%clk 0:00:10.5]} 47... Re6 {[%clk 0:00:34.9]} 48. Rf8 {[%clk 0:00:07.2]} 48...
Kd6+ {[%clk 0:00:35]} 49. Kd3 {[%clk 0:00:06.9]} 49... Re4 {[%clk 0:00:34.9]}
50. Rf6+ {[%clk 0:00:03.6]} 50... Kc5 {[%clk 0:00:34.8]} 51. Rf2 {[%clk
0:00:03.4]} 51... Rxg4 {[%clk 0:00:35.2]} 52. Re2 {[%clk 0:00:03.2]} 52... Rg3+
{[%clk 0:00:35.6]} 53. Kc2 {[%clk 0:00:02.5]} 53... Kc4 {[%clk 0:00:36.1]} 54.
Rd2 {[%clk 0:00:02.4]} 54... Re3 {[%clk 0:00:31]} 55. Rd4+ {[%clk 0:00:02.3]}
55... Kc5 {[%clk 0:00:31.6]} 56. Rg4 {[%clk 0:00:03]} 56... Re2+ {[%clk
0:00:31.7]} 57. Kc1 {[%clk 0:00:03.5]} 57... Re5 {[%clk 0:00:19]} 58. Kd2 {[%clk
0:00:03]} 58... Rf5 {[%clk 0:00:19.2]} 59. Ke2 {[%clk 0:00:02.8]} 59... Re5+
{[%clk 0:00:12.5]} 60. Kd3 {[%clk 0:00:02.9]} 60... Rf5 {[%clk 0:00:12.3]} 61.
Rg3 {[%clk 0:00:03.3]} 61... Rf2 {[%clk 0:00:11.7]} 62. Rxg5 {[%clk 0:00:02.4]}
62... Rxb2 {[%clk 0:00:12.3]} 63. g4 {[%clk 0:00:01.8]} 63... Ra2 {[%clk
0:00:12.8]} 64. Rg8 {[%clk 0:00:01.3]} 64... Rxa3 {[%clk 0:00:13.4]} 65. Rc8+
{[%clk 0:00:01.4]} 65... Kd6 {[%clk 0:00:12.7]} 66. Kd4 {[%clk 0:00:02.3]} 66...
Ra1 {[%clk 0:00:12.1]} 67. Rd8+ {[%clk 0:00:02.6]} 67... Ke6 {[%clk 0:00:12]}
68. Ra8 {[%clk 0:00:02.9]} 68... a3 {[%clk 0:00:11.5]} 69. g5 {[%clk 0:00:02.5]}
69... a2 {[%clk 0:00:11.9]} 70. Kc5 {[%clk 0:00:02.5]} 70... b4 {[%clk
0:00:10.1]} 71. g6 {[%clk 0:00:03]} 71... b3 {[%clk 0:00:04.6]} 72. g7 {[%clk
0:00:02.7]} 72... Rg1 {[%clk 0:00:05.3]} 73. Ra6+ {[%clk 0:00:02.8]} 73... Ke5
{[%clk 0:00:05.1]} 74. Rxa2 {[%clk 0:00:02]} 74... bxa2 {[%clk 0:00:05.1]} 0-1